[Event "XVI Memorial Lezcano Montalvo 2024"]
[Site "Gran Canaria"]
[Date "2024.03.24"]
[Round "2.37"]
[White "Monteiro Rodrigues, Carlos"]
[Black "Gonzalez Perdomo, Sergio"]
[Result "0-1"]
[ECO "B50"]
[WhiteElo "1608"]
[BlackElo "1792"]
[Annotator "NA RC"]
[PlyCount "38"]
[EventDate "2024.03.23"]
[EventType "swiss"]
[EventCountry "ESP"]
[SourceTitle "playchess.com"]
[Source "ChessBase"]
[SourceQuality "1"]
[TimeControl "5400+30"]

1. e4 {[%emt 0:01:53]} c5 {[%emt 0:00:08]} 2. b4 {[%emt 0:00:51]} cxb4 {[%emt 0:00:37]} 3. d4 {[%emt 0:00:20]} d6 {[%emt 0:01:19]} 4. Nf3 {[%emt 0:01:23]} Nf6 {[%emt 0:01:42]} 5. Bd3 {[%emt 0:00:20]} g6 {[%emt 0:00:27]} 6. Bb2 {[%emt 1:28:43]} Bg7 {[%emt 0:00:32]} 7. O-O {[%emt 0:00:00]} O-O {[%emt 0:00:21]} 8. c3 {[%emt 0:00:00]} bxc3 {[%emt 0:00:25]} 9. Nxc3 {[%emt 0:00:00]} Nbd7 {[%emt 0:02:50]} 10. Re1 {[%emt 0:00:00]} e5 {[%emt 0:01:16]} 11. Ba3 {[%emt 0:02:30]} exd4 {[%emt 1:26:23]} 12. Nb5 {[%emt 0:00:00]} Nc5 {[%emt 0:00:00]} 13. Bxc5 {[%emt 0:00:00]} dxc5 {[%emt 0:00:00]} 14. Rc1 {[%emt 0:00:00]} b6 {[%emt 0:00:00]} 15. Na3 {[%emt 0:00:00]} Be6 {[%emt 0:00:00]} 16. Ng5 {[%emt 0:00:00]} Bd7 {[%emt 0:00:00]} 17. Bc4 {[%emt 0:00:00]} h6 {[%emt 0:00:00]} 18. f4 {[%emt 0:00:00]} hxg5 {[%emt 0:00:00]} 19. Qb3 {[%emt 0:04:00]} gxf4 {[%emt 0:00:00]} 0-1

[Event "XVI Memorial Lezcano Montalvo 2024"]
[Site "Gran Canaria"]
[Date "2024.03.24"]
[Round "2.38"]
[White "Rossello Padron, Carlos"]
[Black "Richter, Anastasia"]
[Result "1-0"]
[ECO "A01"]
[WhiteElo "1792"]
[BlackElo "1614"]
[Annotator "NA RC"]
[PlyCount "77"]
[EventDate "2024.03.23"]
[EventType "swiss"]
[EventCountry "ESP"]
[SourceTitle "playchess.com"]
[Source "ChessBase"]
[SourceQuality "1"]
[TimeControl "5400+30"]

1. b3 {[%emt 0:00:23]} e5 {[%emt 0:00:36]} 2. Bb2 {[%emt 0:00:32]} Nc6 {[%emt 0:00:00]} 3. e3 {[%emt 0:00:39]} Nf6 {[%emt 0:00:00]} 4. Bb5 {[%emt 0:01:52]} Bd6 {[%emt 0:00:00]} 5. Bxc6 {[%emt 0:00:10]} dxc6 {[%emt 0:00:03]} 6. d3 {[%emt 0:00:27]} Qe7 {[%emt 0:01:53]} 7. Nd2 {[%emt 0:02:28]} b5 {[%emt 0:05:02]} 8. Ne2 {[%emt 0:02:19]} Bb7 {[%emt 0:07:09]} 9. e4 {[%emt 0:03:42]} O-O-O {[%emt 0:10:20]} 10. Ng3 {[%emt 0:04:24]} g6 {[%emt 0:04:45]} 11. O-O {[%emt 0:11:24]} h5 {[%emt 0:06:37]} 12. h3 {[%emt 0:01:04]} h4 {[%emt 0:07:05]} 13. Ne2 {[%emt 0:01:39]} g5 {[%emt 0:04:48]} 14. d4 {[%emt 0:07:53]} g4 {[%emt 0:07:05]} 15. f4 {[%emt 0:03:58]} gxh3 {[%emt 0:08:05]} 16. fxe5 {[%emt 0:00:21]} hxg2 {[%emt 0:00:20]} 17. Rxf6 {[%emt 0:00:30]} c5 {[%emt 0:06:49]} 18. Rf5 {[%emt 0:03:34]} h3 {[%emt 0:04:16]} 19. Kh2 {[%emt 0:01:04]} Rdg8 {[%emt 0:08:47]} 20. exd6 {[%emt 0:03:31]} Qxd6+ {[%emt 0:01:19]} 21. e5 {[%emt 0:00:33]} g1=Q+ {[%emt 0:03:17]} 22. Qxg1 {[%emt 0:01:52]} Rxg1 {[%emt 0:07:53]} 23. exd6 {[%emt 0:00:27]} Rg2+ {[%emt 0:00:45]} 24. Kh1 {[%emt 0:00:17]} Rf2+ {[%emt 0:02:07]} 25. d5 {[%emt 0:00:13]} Rxf5 {[%emt 0:00:27]} 26. Bxh8 {[%emt 0:00:10]} Bxd5+ {[%emt 0:00:32]} 27. Kg1 {[%emt 0:00:47]} Rh5 {[%emt 0:02:13]} 28. Nf4 {[%emt 0:00:31]} h2+ {[%emt 0:00:32]} 29. Kf2 {[%emt 0:00:40]} h1=Q {[%emt 0:00:35]} 30. Rxh1 {[%emt 0:00:11]} Rxh1 {[%emt 0:00:05]} 31. Nxd5 {[%emt 0:00:18]} Rxh8 {[%emt 0:00:10]} 32. dxc7 {[%emt 0:00:12]} Rh5 {[%emt 0:00:31]} 33. c4 {[%emt 0:00:12]} Rh2+ {[%emt 0:01:09]} 34. Ke3 {[%emt 0:00:21]} Rh3+ {[%emt 0:00:51]} 35. Kf4 {[%emt 0:00:20]} bxc4 {[%emt 0:00:39]} 36. bxc4 {[%emt 0:00:14]} Rh4+ {[%emt 0:00:28]} 37. Ke5 {[%emt 0:00:31]} Rd4 {[%emt 0:00:30]} 38. Ne4 {[%emt 0:02:00]} Rd1 {[%emt 0:01:05]} 39. Nd6+ {[%emt 0:48:17]} 1-0

[Event "XVI Memorial Lezcano Montalvo 2024"]
[Site "Gran Canaria"]
[Date "2024.03.24"]
[Round "2.39"]
[White "Martinez Correa, Rafael"]
[Black "Guerra Aleman, Marcial"]
[Result "1-0"]
[ECO "B07"]
[WhiteElo "1597"]
[BlackElo "1788"]
[Annotator "NA RC"]
[PlyCount "37"]
[EventDate "2024.03.23"]
[EventType "swiss"]
[EventCountry "ESP"]
[SourceTitle "playchess.com"]
[Source "ChessBase"]
[SourceQuality "1"]
[TimeControl "5400+30"]

1. e4 {[%emt 0:00:02]} d6 {[%emt 0:00:11]} 2. d4 {[%emt 0:00:09]} Nf6 {[%emt 0:00:05]} 3. Nc3 {[%emt 0:00:20]} g6 {[%emt 0:00:11]} 4. Bf4 {[%emt 0:00:19]} Bg7 {[%emt 0:01:01]} 5. Qd2 {[%emt 0:00:18]} Nc6 {[%emt 0:04:22]} 6. O-O-O {[%emt 0:01:05]} a6 {[%emt 0:10:38]} 7. Nf3 {[%emt 0:03:53]} Bg4 {[%emt 0:01:26]} 8. h3 {[%emt 0:01:43]} Bxf3 {[%emt 0:00:15]} 9. gxf3 {[%emt 0:00:12]} Nh5 {[%emt 0:00:10]} 10. Be3 {[%emt 0:00:51]} e5 {[%emt 0:01:14]} 11. dxe5 {[%emt 0:04:31]} Bxe5 {[%emt 0:06:17]} 12. f4 {[%emt 0:02:07]} Bg7 {[%emt 0:01:42]} 13. Be2 {[%emt 0:06:43]} Nf6 {[%emt 0:04:06]} 14. Nd5 {[%emt 0:05:47]} Nxe4 {[%emt 0:02:50]} 15. Qd3 {[%emt 0:00:45]} Nf6 {[%emt 0:01:04]} 16. Rhe1 {[%emt 0:01:36]} Nxd5 {[%emt 0:13:54]} 17. Qxd5 {[%emt 0:00:10]} Qf6 {[%emt 0:02:12]} 18. c3 {[%emt 0:04:12]} O-O-O {[%emt 0:00:34]} 19. Bxa6 {[%emt 0:01:04]} 1-0

[Event "XVI Memorial Lezcano Montalvo 2024"]
[Site "Gran Canaria"]
[Date "2024.03.24"]
[Round "2.40"]
[White "Cabrera Ramos, Javier"]
[Black "Juan Miguel, Javier"]
[Result "1-0"]
[ECO "D07"]
[WhiteElo "1784"]
[BlackElo "1597"]
[Annotator "NA RC"]
[PlyCount "79"]
[EventDate "2024.03.23"]
[EventType "swiss"]
[EventCountry "ESP"]
[SourceTitle "playchess.com"]
[Source "ChessBase"]
[SourceQuality "1"]
[TimeControl "5400+30"]

1. Nf3 {[%emt 0:00:03]} Nc6 {[%emt 0:00:36]} 2. e3 {[%emt 0:00:07]} Nf6 {[%emt 0:00:51]} 3. c4 {[%emt 0:00:12]} e6 {[%emt 0:00:47]} 4. Nc3 {[%emt 0:00:15]} b6 {[%emt 0:01:03]} 5. d4 {[%emt 0:01:00]} d5 {[%emt 0:00:42]} 6. b3 {[%emt 0:00:05]} Bb4 {[%emt 0:01:04]} 7. Bb2 {[%emt 0:00:10]} Bb7 {[%emt 0:02:42]} 8. a3 {[%emt 0:00:22]} Bd6 {[%emt 0:01:28]} 9. Qc2 {[%emt 0:01:31]} Ne7 {[%emt 0:04:01]} 10. Rd1 {[%emt 0:02:22]} c5 {[%emt 0:03:57]} 11. cxd5 {[%emt 0:00:21]} exd5 {[%emt 0:00:47]} 12. dxc5 {[%emt 0:02:15]} bxc5 {[%emt 0:01:28]} 13. Bb5+ {[%emt 0:01:13]} Nd7 {[%emt 0:01:34]} 14. Na4 {[%emt 0:01:40]} Rc8 {[%emt 0:03:33]} 15. Bxg7 {[%emt 0:02:39]} Rg8 {[%emt 0:00:23]} 16. Bxd7+ {[%emt 0:00:38]} Kxd7 {[%emt 0:01:13]} 17. Qxh7 {[%emt 0:00:52]} c4 {[%emt 0:02:28]} 18. b4 {[%emt 0:01:15]} a5 {[%emt 0:01:53]} 19. Ne5+ {[%emt 0:00:51]} Bxe5 {[%emt 0:00:24]} 20. Bxe5 {[%emt 0:00:11]} Kc6 {[%emt 0:03:58]} 21. Qxf7 {[%emt 0:02:02]} Rg6 {[%emt 0:00:21]} 22. e4 {[%emt 0:01:19]} Kd7 {[%emt 0:03:29]} 23. Nc5+ {[%emt 0:00:46]} Rxc5 {[%emt 0:00:00]} 24. bxc5 {[%emt 0:00:03]} a4 {[%emt 0:01:01]} 25. O-O {[%emt 0:00:30]} Qg8 {[%emt 0:01:14]} 26. Qxg8 {[%emt 0:00:38]} Rxg8 {[%emt 0:00:09]} 27. Bf6 {[%emt 0:00:48]} Rc8 {[%emt 0:01:48]} 28. Bxe7 {[%emt 0:00:34]} Kxe7 {[%emt 0:00:08]} 29. exd5 {[%emt 0:00:07]} Rxc5 {[%emt 0:00:08]} 30. Rfe1+ {[%emt 0:00:24]} Kd7 {[%emt 0:00:15]} 31. d6 {[%emt 0:00:18]} Rc8 {[%emt 0:01:38]} 32. h4 {[%emt 0:00:57]} Rg8 {[%emt 0:00:22]} 33. Re7+ {[%emt 0:00:12]} Kc8 {[%emt 0:00:07]} 34. Rc7+ {[%emt 0:00:26]} Kb8 {[%emt 0:00:07]} 35. Rb1 {[%emt 0:00:09]} Rxg2+ {[%emt 0:00:14]} 36. Kf1 {[%emt 0:00:08]} Rg6 {[%emt 0:00:46]} 37. Rbxb7+ {[%emt 0:00:14]} Ka8 {[%emt 0:00:05]} 38. d7 {[%emt 0:00:18]} Rg8 {[%emt 0:00:19]} 39. Ra7+ {[%emt 0:00:11]} Kb8 {[%emt 0:00:07]} 40. Rcb7# {[%emt 0:00:18]} 1-0

[Event "XVI Memorial Lezcano Montalvo 2024"]
[Site "Gran Canaria"]
[Date "2024.03.24"]
[Round "2.41"]
[White "Lorenzo Merino, Hector"]
[Black "Bangiev, Katharina"]
[Result "0-1"]
[ECO "D00"]
[WhiteElo "1586"]
[BlackElo "1779"]
[Annotator "NA RC"]
[PlyCount "104"]
[EventDate "2024.03.23"]
[EventType "swiss"]
[EventCountry "ESP"]
[SourceTitle "playchess.com"]
[Source "ChessBase"]
[SourceQuality "1"]
[TimeControl "5400+30"]

1. d4 {[%emt 0:00:30]} Nf6 {[%emt 0:00:11]} 2. Nf3 {[%emt 0:00:01]} g6 {[%emt 0:00:14]} 3. Bf4 {[%emt 0:00:11]} Bg7 {[%emt 0:00:29]} 4. e3 {[%emt 0:00:28]} O-O {[%emt 0:00:33]} 5. Nc3 {[%emt 0:00:24]} d5 {[%emt 0:00:28]} 6. Be2 {[%emt 0:00:28]} c5 {[%emt 0:02:02]} 7. Ne5 {[%emt 0:00:29]} Nbd7 {[%emt 0:02:26]} 8. h4 {[%emt 0:00:22]} Qa5 {[%emt 0:19:13]} 9. f3 {[%emt 0:09:01]} cxd4 {[%emt 0:16:14]} 10. exd4 {[%emt 0:00:35]} Qb4 {[%emt 0:05:47]} 11. Rb1 {[%emt 0:00:45]} Nh5 {[%emt 0:06:41]} 12. Bh2 {[%emt 0:00:15]} Nxe5 {[%emt 0:00:47]} 13. dxe5 {[%emt 0:01:05]} Qxh4+ {[%emt 0:00:37]} 14. Kf1 {[%emt 0:01:34]} Bxe5 {[%emt 0:03:14]} 15. Bxe5 {[%emt 0:02:02]} Qxh1+ {[%emt 0:00:26]} 16. Kf2 {[%emt 0:00:09]} Qh4+ {[%emt 0:06:30]} 17. Kg1 {[%emt 0:01:18]} Qg5 {[%emt 0:07:08]} 18. Qd4 {[%emt 0:06:45]} Bh3 {[%emt 0:03:41]} 19. g4 {[%emt 0:04:31]} Nf6 {[%emt 0:03:04]} 20. Kf2 {[%emt 0:06:55]} Nd7 {[%emt 0:04:33]} 21. Bg3 {[%emt 0:04:04]} Qf6 {[%emt 0:03:41]} 22. Qxf6 {[%emt 0:02:15]} Nxf6 {[%emt 0:00:05]} 23. Rh1 {[%emt 0:00:16]} Bxg4 {[%emt 0:00:28]} 24. fxg4 {[%emt 0:00:13]} d4 {[%emt 0:01:03]} 25. Nb5 {[%emt 0:04:02]} Ne4+ {[%emt 0:00:33]} 26. Kf3 {[%emt 0:00:47]} Nxg3 {[%emt 0:00:16]} 27. Kxg3 {[%emt 0:00:08]} e5 {[%emt 0:01:11]} 28. Bc4 {[%emt 0:03:42]} Rac8 {[%emt 0:03:04]} 29. Bb3 {[%emt 0:00:08]} a6 {[%emt 0:00:44]} 30. Nd6 {[%emt 0:00:14]} Rc7 {[%emt 0:00:31]} 31. g5 {[%emt 0:00:35]} Kg7 {[%emt 0:02:21]} 32. Ne4 {[%emt 0:00:31]} Re7 {[%emt 0:03:00]} 33. Nf6 {[%emt 0:01:44]} h5 {[%emt 0:01:15]} 34. Kf3 {[%emt 0:01:15]} Rd8 {[%emt 0:00:44]} 35. Ke4 {[%emt 0:00:38]} Rc8 {[%emt 0:02:32]} 36. Rf1 {[%emt 0:00:56]} Rf8 {[%emt 0:01:26]} 37. Nd5 {[%emt 0:00:36]} Ree8 {[%emt 0:00:38]} 38. Rf6 {[%emt 0:01:01]} h4 {[%emt 0:00:29]} 39. Rf1 {[%emt 0:01:34]} h3 {[%emt 0:00:45]} 40. Nf6 {[%emt 0:00:45]} Re7 {[%emt 0:00:16]} 41. Rh1 {[%emt 0:00:58]} Rh8 {[%emt 0:00:18]} 42. Ng4 {[%emt 0:01:27]} Rh4 {[%emt 0:01:02]} 43. Kf3 {[%emt 0:00:25]} e4+ {[%emt 0:00:25]} 44. Kg3 {[%emt 0:01:23]} Rh5 {[%emt 0:00:03]} 45. Rxh3 {[%emt 0:02:10]} Rxh3+ {[%emt 0:00:25]} 46. Kxh3 {[%emt 0:00:18]} e3 {[%emt 0:00:04]} 47. Bc4 {[%emt 0:02:37]} e2 {[%emt 0:00:14]} 48. Bxe2 {[%emt 0:00:18]} Rxe2 {[%emt 0:00:06]} 49. c3 {[%emt 0:00:25]} d3 {[%emt 0:00:09]} 50. Kg3 {[%emt 0:00:24]} d2 {[%emt 0:00:14]} 51. Nf2 {[%emt 0:00:12]} Rxf2 {[%emt 0:00:11]} 52. Kxf2 {[%emt 0:00:08]} d1=Q {[%emt 0:00:07]} 0-1

[Event "XVI Memorial Lezcano Montalvo 2024"]
[Site "Gran Canaria"]
[Date "2024.03.24"]
[Round "2.42"]
[White "Grube, Kurt"]
[Black "Morell Rojas, Samuel"]
[Result "1-0"]
[ECO "A15"]
[WhiteElo "1773"]
[BlackElo "1590"]
[Annotator "NA RC"]
[PlyCount "67"]
[EventDate "2024.03.23"]
[EventType "swiss"]
[EventCountry "ESP"]
[SourceTitle "playchess.com"]
[Source "ChessBase"]
[SourceQuality "1"]
[TimeControl "5400+30"]

1. Nf3 {[%emt 0:00:05]} Nf6 {[%emt 0:01:09]} 2. c4 {[%emt 0:00:06]} Nc6 {[%emt 0:00:01]} 3. Nc3 {[%emt 0:00:06]} g6 {[%emt 0:00:21]} 4. d4 {[%emt 0:00:09]} e6 {[%emt 0:02:46]} 5. Bg5 {[%emt 0:02:28]} Bg7 {[%emt 1:28:43]} 6. e4 {[%emt 0:03:46]} d6 {[%emt 0:00:00]} 7. Be2 {[%emt 0:01:42]} O-O {[%emt 0:00:00]} 8. Qd2 {[%emt 0:00:34]} Bd7 {[%emt 0:00:00]} 9. e5 {[%emt 0:01:11]} h6 {[%emt 0:00:00]} 10. Bxf6 {[%emt 0:02:57]} Bxf6 {[%emt 0:00:00]} 11. exf6 {[%emt 0:00:06]} Qxf6 {[%emt 0:00:00]} 12. Qxh6 {[%emt 0:01:14]} Nxd4 {[%emt 0:00:00]} 13. Nxd4 {[%emt 0:00:22]} Qxd4 {[%emt 0:00:00]} 14. Rd1 {[%emt 0:02:29]} Qg7 {[%emt 0:00:00]} 15. Qxg7+ {[%emt 0:01:15]} Kxg7 {[%emt 0:00:00]} 16. Bf3 {[%emt 0:00:35]} Rab8 {[%emt 0:00:00]} 17. O-O {[%emt 0:02:12]} Rh8 {[%emt 0:00:00]} 18. Rfe1 {[%emt 0:03:29]} g5 {[%emt 0:00:00]} 19. Ne4 {[%emt 0:05:11]} g4 {[%emt 0:00:00]} 20. Be2 {[%emt 0:03:41]} f5 {[%emt 0:00:00]} 21. Nc5 {[%emt 0:02:04]} Bc6 {[%emt 0:00:00]} 22. Nxe6+ {[%emt 0:00:33]} Kf6 {[%emt 0:00:00]} 23. Nd4 {[%emt 0:02:18]} Bd7 {[%emt 0:00:00]} 24. f3 {[%emt 0:04:46]} c5 {[%emt 0:00:00]} 25. Nb5 {[%emt 0:05:31]} Kg5 {[%emt 0:00:00]} 26. fxg4 {[%emt 0:01:17]} fxg4 {[%emt 0:00:00]} 27. Nxd6 {[%emt 0:01:00]} Rh7 {[%emt 0:00:00]} 28. Bd3 {[%emt 0:05:43]} Rh4 {[%emt 0:00:00]} 29. g3 {[%emt 0:05:27]} Rh3 {[%emt 0:00:00]} 30. Bf1 {[%emt 0:00:37]} Rh7 {[%emt 0:00:00]} 31. Ne4+ {[%emt 0:02:32]} Kg6 {[%emt 0:00:00]} 32. Rd6+ {[%emt 0:02:03]} Kf5 {[%emt 0:00:00]} 33. Nxc5 {[%emt 0:01:57]} Bc6 {[%emt 0:00:00]} 34. Bd3+ {[%emt 0:00:17]} 1-0

[Event "XVI Memorial Lezcano Montalvo 2024"]
[Site "Gran Canaria"]
[Date "2024.03.25"]
[Round "3.1"]
[White "Dvirnyy, Danyyil"]
[Black "Loiacono, Leonardo"]
[Result "1-0"]
[ECO "C60"]
[WhiteElo "2482"]
[BlackElo "2316"]
[Annotator "RC"]
[PlyCount "191"]
[EventDate "2024.03.23"]
[EventType "swiss"]
[EventCountry "ESP"]
[SourceTitle "playchess.com"]
[Source "ChessBase"]
[SourceQuality "1"]
[TimeControl "5400+30"]

1. e4 {[%emt 0:00:04]} e5 {[%emt 0:01:35]} 2. Nf3 {[%emt 0:00:40]} Nc6 {[%emt 0:00:05]} 3. Bb5 {[%emt 0:02:06]} g6 {[%emt 0:00:16]} 4. c3 {[%emt 0:02:07]} a6 {[%emt 0:00:10]} 5. Bc4 {[%emt 0:01:55]} Bg7 {[%emt 0:08:11]} 6. d4 {[%emt 0:00:14]} b5 {[%emt 0:01:02]} 7. Be2 {[%emt 0:00:50]} exd4 {[%emt 0:11:10]} 8. cxd4 {[%emt 0:00:46]} d5 {[%emt 0:00:07]} 9. exd5 {[%emt 0:03:23]} Qxd5 {[%emt 0:00:06]} 10. O-O {[%emt 0:06:10]} Nge7 {[%emt 0:04:28]} 11. Nc3 {[%emt 0:05:31]} Qd6 {[%emt 0:00:39]} 12. Ne4 {[%emt 0:15:18]} Qd5 {[%emt 0:01:00]} 13. Bh6 {[%emt 0:01:20]} O-O {[%emt 0:01:38]} 14. Nc3 {[%emt 0:00:57]} Qd6 {[%emt 0:05:53]} 15. Bxg7 {[%emt 0:00:09]} Kxg7 {[%emt 0:00:04]} 16. d5 {[%emt 0:01:19]} Nb4 {[%emt 0:05:14]} 17. Qd4+ {[%emt 0:03:18]} f6 {[%emt 0:02:46]} 18. Ne4 {[%emt 0:01:16]} Qxd5 {[%emt 0:01:24]} 19. Qxb4 {[%emt 0:06:37]} Nc6 {[%emt 0:00:13]} 20. Qc5 {[%emt 0:02:09]} Qxe4 {[%emt 0:00:54]} 21. Rfe1 {[%emt 0:01:13]} Bb7 {[%emt 0:05:26]} 22. Bxb5 {[%emt 0:02:00]} Qb4 {[%emt 0:00:12]} 23. Re7+ {[%emt 0:02:02]} Kh8 {[%emt 0:00:35]} 24. Qxb4 {[%emt 0:01:25]} Nxb4 {[%emt 0:00:08]} 25. Bc4 {[%emt 0:00:41]} Rac8 {[%emt 0:04:46]} 26. Rc1 {[%emt 0:02:15]} Nd5 {[%emt 0:08:51]} 27. Bxd5 {[%emt 0:06:21]} Bxd5 {[%emt 0:00:07]} 28. b3 {[%emt 0:00:04]} c5 {[%emt 0:01:33]} 29. Nd2 {[%emt 0:00:49]} Rfd8 {[%emt 0:08:33]} 30. f3 {[%emt 0:00:04]} f5 {[%emt 0:04:17]} 31. Kf2 {[%emt 0:00:19]} a5 {[%emt 0:01:40]} 32. Rc2 {[%emt 0:01:01]} a4 {[%emt 0:01:05]} 33. bxa4 {[%emt 0:05:36]} Ra8 {[%emt 0:00:40]} 34. Nb3 {[%emt 0:03:58]} Rxa4 {[%emt 0:06:15]} 35. Nxc5 {[%emt 0:06:50]} Rc8 {[%emt 0:00:39]} 36. Re8+ {[%emt 0:00:48]} Rxe8 {[%emt 0:00:43]} 37. Nxa4 {[%emt 0:00:03]} Ra8 {[%emt 0:01:32]} 38. Nc3 {[%emt 0:00:04]} Rc8 {[%emt 0:00:02]} 39. Rc1 {[%emt 0:00:37]} f4 {[%emt 0:00:13]} 40. Ne2 {[%emt 0:02:15]} Ra8 {[%emt 0:00:30]} 41. Nxf4 {[%emt 0:00:06]} Rxa2+ {[%emt 0:00:14]} 42. Ke3 {[%emt 0:00:06]} Bf7 {[%emt 0:00:14]} 43. h4 {[%emt 0:00:06]} Kg7 {[%emt 0:01:41]} 44. Rc5 {[%emt 0:00:53]} h5 {[%emt 0:02:00]} 45. Rc6 {[%emt 0:00:44]} Rb2 {[%emt 0:01:56]} 46. g3 {[%emt 0:00:17]} Rb1 {[%emt 0:01:12]} 47. Rd6 {[%emt 0:00:36]} Rb3+ {[%emt 0:01:28]} 48. Rd3 {[%emt 0:00:21]} Rb1 {[%emt 0:00:27]} 49. Rd6 {[%emt 0:02:07]} Re1+ {[%emt 0:00:58]} 50. Kf2 {[%emt 0:00:07]} Re7 {[%emt 0:00:22]} 51. Rb6 {[%emt 0:00:47]} Ra7 {[%emt 0:01:08]} 52. Nd3 {[%emt 0:00:23]} Re7 {[%emt 0:00:25]} 53. Nc5 {[%emt 0:00:37]} Re5 {[%emt 0:01:19]} 54. Ne4 {[%emt 0:00:09]} Re7 {[%emt 0:02:01]} 55. Rd6 {[%emt 0:00:58]} Be6 {[%emt 0:00:41]} 56. Rb6 {[%emt 0:01:30]} Bd5 {[%emt 0:01:41]} 57. Nc3 {[%emt 0:01:12]} Be6 {[%emt 0:00:16]} 58. Rc6 {[%emt 0:01:53]} Bf5 {[%emt 0:01:54]} 59. Nd5 {[%emt 0:00:15]} Re5 {[%emt 0:00:24]} 60. Rc7+ {[%emt 0:00:36]} Kf8 {[%emt 0:00:05]} 61. Nf6 {[%emt 0:02:31]} Re6 {[%emt 0:00:55]} 62. Nd5 {[%emt 0:02:04]} Re5 {[%emt 0:00:03]} 63. Nf4 {[%emt 0:00:09]} Kg8 {[%emt 0:01:06]} 64. Ra7 {[%emt 0:00:37]} Kf8 {[%emt 0:00:24]} 65. g4 {[%emt 0:03:25]} hxg4 {[%emt 0:00:02]} 66. fxg4 {[%emt 0:00:09]} Bb1 {[%emt 0:00:10]} 67. Rb7 {[%emt 0:00:25]} Be4 {[%emt 0:00:07]} 68. Rb3 {[%emt 0:01:47]} Ra5 {[%emt 0:01:06]} 69. Ke3 {[%emt 0:00:16]} Bc2 {[%emt 0:00:26]} 70. Rc3 {[%emt 0:01:00]} Re5+ {[%emt 0:01:18]} 71. Kd2 {[%emt 0:00:04]} Bb1 {[%emt 0:02:14]} 72. Rb3 {[%emt 0:00:39]} Re4 {[%emt 0:00:04]} 73. Nxg6+ {[%emt 0:01:44]} Kg7 {[%emt 0:00:02]} 74. Rxb1 {[%emt 0:01:54]} Rxg4 {[%emt 0:00:30]} 75. h5 {[%emt 0:00:27]} Kh6 {[%emt 0:00:01]} 76. Rh1 {[%emt 0:01:38]} Ra4 {[%emt 0:03:00]} 77. Ke3 {[%emt 0:00:07]} Ra5 {[%emt 0:00:40]} 78. Nf4 {[%emt 0:00:09]} Kg5 {[%emt 0:00:02]} 79. Rg1+ {[%emt 0:01:12]} Kf5 {[%emt 0:00:15]} 80. Ne2 {[%emt 0:01:03]} Kf6 {[%emt 0:01:15]} 81. Nf4 {[%emt 0:00:26]} Kf5 {[%emt 0:00:03]} 82. Rd1 {[%emt 0:00:49]} Kg5 {[%emt 0:00:15]} 83. Ke4 {[%emt 0:00:21]} Ra6 {[%emt 0:02:14]} 84. Rd5+ {[%emt 0:00:27]} Kg4 {[%emt 0:00:04]} 85. Ke5 {[%emt 0:00:41]} Kg5 {[%emt 0:00:08]} 86. Ke4+ {[%emt 0:00:22]} Kg4 {[%emt 0:00:05]} 87. Ng2 {[%emt 0:00:40]} Ra4+ {[%emt 0:00:26]} 88. Ke3 {[%emt 0:00:03]} Ra3+ {[%emt 0:00:04]} 89. Kf2 {[%emt 0:00:08]} Ra2+ {[%emt 0:00:05]} 90. Kg1 {[%emt 0:00:10]} Ra3 {[%emt 0:00:29]} 91. Kf2 {[%emt 0:01:39]} Ra2+ {[%emt 0:00:07]} 92. Kf1 {[%emt 0:00:07]} Ra1+ {[%emt 0:00:39]} 93. Ne1 {[%emt 0:00:11]} Ra7 {[%emt 0:01:57]} 94. Nc2 {[%emt 0:01:04]} Rh7 {[%emt 0:00:26]} 95. Ne3+ {[%emt 0:00:08]} Kh4 {[%emt 0:00:33]} 96. h6 {[%emt 0:00:04]} 1-0

[Event "XVI Memorial Lezcano Montalvo 2024"]
[Site "Gran Canaria"]
[Date "2024.03.25"]
[Round "3.3"]
[White "Kurajica, Bojan"]
[Black "Van Zyl-Rudd, Jack"]
[Result "1/2-1/2"]
[ECO "D47"]
[WhiteElo "2444"]
[BlackElo "2264"]
[Annotator "TA"]
[PlyCount "71"]
[EventDate "2024.03.23"]
[EventType "swiss"]
[EventCountry "ESP"]
[SourceTitle "playchess.com"]
[Source "ChessBase"]
[SourceQuality "1"]
[TimeControl "5400+30"]

{[%evp 27,71,41,32,0,0,-20,-11,-20,-19,-12,-16,-16,0,0,0,0,0,-12,23,6,5,4,4,0,0,0,0,0,0,0,13,19,18,14,46,51,47,53,77,0,0,0,0,0,0,0]} 1. Nf3 {[%emt 0:00:04]} d5 {[%emt 0:01:46]} 2. d4 {[%emt 0:00:08]} Nf6 {[%emt 0:00:03]} 3. c4 {[%emt 0:00:07]} e6 {[%emt 0:00:08]} 4. Nc3 {[%emt 0:00:06]} c6 {[%emt 0:00:42]} 5. e3 {[%emt 0:01:53][%cal Be2e3,Be3e4,Be4e5][%mdl 32]} Nbd7 {[%emt 0:01:07]} 6. Bd3 {[%emt 0:02:36]} dxc4 {[%emt 0:00:05]} 7. Bxc4 {[%emt 0:00:06]} b5 {[%emt 0:00:03]} 8. Bd3 {[%emt 0:00:17]} Bb7 {[%emt 0:00:05]} 9. e4 {[%emt 0:00:19]} b4 {[%emt 0:00:03]} 10. Na4 {[%emt 0:01:43]} c5 {[%emt 0:00:11]} 11. e5 {[%emt 0:00:19]} Nd5 {[%emt 0:00:22]} 12. dxc5 {[%emt 0:04:44]} Bxc5 {[%emt 0:03:52]} 13. Nxc5 {[%emt 0:02:05]} Nxc5 {[%emt 0:00:11]} 14. Bb5+ {[%emt 0:00:07]} Ke7 {[%emt 0:00:27]} 15. Qd4 {[%emt 0:12:56]} Qb6 {[%emt 0:01:51]} 16. Bc4 {[%emt 0:00:24]} h6 $1 {[%emt 0:04:45]} 17. Bxd5 {[%emt 0:23:40]} Bxd5 {[%emt 0:00:08]} 18. Be3 {[%emt 0:00:45]} Rhc8 {[%emt 0:26:54] [#] And now ...Qb5 would win.} 19. O-O {[%emt 0:13:19]} Qb7 {[%emt 0:00:35]} (19... Kf8 {simplifies} 20. Rfc1 Nd7 21. Ne1 Qxd4 22. Bxd4 Rxc1 23. Rxc1 Bxa2 24. Rc7 Nb6) 20. Rfc1 {[%emt 0:02:49]} Nd7 {[%emt 0:00:31]} 21. Ne1 {[%emt 0:03:57]} a5 {[%emt 0:02:44]} 22. b3 {[%emt 0:06:26]} Ra6 {[%emt 0:16:34]} 23. Rxc8 {[%emt 0:00:59]} Qxc8 {[%emt 0:00:02]} 24. Nd3 {[%emt 0:00:39]} Qc3 {[%emt 0:10:15]} 25. Rc1 {[%emt 0:06:11]} Qxd4 {[%emt 0:00:16]} 26. Bxd4 {[%emt 0:00:07]} Rc6 {[%emt 0:00:50]} 27. Rxc6 {[%emt 0:01:28]} Bxc6 {[%emt 0:00:06]} 28. Nc5 {[%emt 0:00:24]} Nxc5 {[%emt 0:01:20]} 29. Bxc5+ $11 {[%emt 0:00:07][%mdl 4096] Endgame. KB-KB} Ke8 {[%emt 0:00:05]} 30. f3 {[%emt 0:04:20]} g6 {[%emt 0:00:14]} 31. Kf2 {[%emt 0:00:25]} Kd7 {[%emt 0:05:10]} 32. Ke3 {[%emt 0:01:44]} Bd5 {[%emt 0:00:06]} 33. Bb6 {[%emt 0:05:00]} (33. Bf8 $16) 33... a4 $1 {[%emt 0:00:07] The position is equal.} 34. Bc5 {[%emt 0:00:17]} axb3 {[%emt 0:00:28]} 35. axb3 {[%emt 0:00:05]} Bxb3 {[%emt 0:00:05]} 36. Bxb4 {[%emt 0:07:54] Weighted Error Value: White=0.10 (very precise) /Black=0.06 (flawless) .  Mistake:       	White=1     	---        Inaccurate:     	---       	Black=2      OK:         	White=12    	Black=8      Strong:       	---       	Black=2} 1/2-1/2